[Event "AUT-ch Open 2020"]
[Site "Graz"]
[Date "2020.02.18"]
[Round "5.29"]
[White "Socko, Monika"]
[Black "Peycheva, Gergana"]
[Result "1-0"]
[ECO "E06"]
[WhiteElo "2419"]
[BlackElo "2419"]
[Annotator "RC"]
[PlyCount "93"]
[EventDate "2020.02.14"]
[EventType "swiss"]
[EventCountry "AUT"]
[SourceTitle "playchess.com"]
[Source "ChessBase"]
[SourceQuality "1"]
[TimeControl "40/5400+30:1800+30"]

1. d4 {[%emt 0:00:00]} Nf6 {[%emt 0:00:00]} 2. c4 {[%emt 0:00:00]} e6 {[%emt 0:00:27]} 3. g3 {[%emt 0:00:00]} d5 {[%emt 0:00:49]} 4. Nf3 {[%emt 0:00:00]} Be7 {[%emt 0:00:56]} 5. Bg2 {[%emt 0:00:09]} O-O {[%emt 0:00:33]} 6. O-O {[%emt 0:00:06]} c6 {[%emt 0:01:00]} 7. Nbd2 {[%emt 0:03:33]} b6 {[%emt 0:01:48]} 8. b3 {[%emt 0:01:34]} Bb7 {[%emt 0:02:35]} 9. Bb2 {[%emt 0:00:08]} Nbd7 {[%emt 0:04:08]} 10. Ne5 {[%emt 0:03:56]} c5 {[%emt 0:05:16]} 11. cxd5 {[%emt 0:02:39]} Nxd5 {[%emt 0:06:31]} 12. Nxd7 {[%emt 0:16:52]} Qxd7 {[%emt 0:00:09]} 13. dxc5 {[%emt 0:00:10]} Bxc5 {[%emt 0:04:24]} 14. Ne4 {[%emt 0:06:55]} Be7 {[%emt 0:18:17]} 15. Qd4 {[%emt 0:00:34]} f6 {[%emt 0:00:04]} 16. Rad1 {[%emt 0:00:54]} Rfd8 {[%emt 0:04:58]} 17. Nc3 {[%emt 0:06:07]} Bc5 {[%emt 0:07:15]} 18. Qg4 {[%emt 0:05:38]} Qe7 {[%emt 0:03:18]} 19. Nxd5 {[%emt 0:06:31]} Bxd5 {[%emt 0:00:20]} 20. Bxd5 {[%emt 0:00:06]} Rxd5 {[%emt 0:00:31]} 21. Rxd5 {[%emt 0:00:47]} exd5 {[%emt 0:00:06]} 22. Rd1 {[%emt 0:01:03]} Re8 {[%emt 0:05:34]} 23. e3 {[%emt 0:02:41]} Qe4 {[%emt 0:02:48]} 24. Qe2 {[%emt 0:04:27]} a5 {[%emt 0:05:12]} 25. Bc3 {[%emt 0:07:57]} Rd8 {[%emt 0:06:16]} 26. Rd3 {[%emt 0:02:53]} a4 {[%emt 0:02:14]} 27. f3 {[%emt 0:03:02]} Qe7 {[%emt 0:05:24]} 28. bxa4 {[%emt 0:02:49]} Ra8 {[%emt 0:01:20]} 29. a5 {[%emt 0:01:02]} bxa5 {[%emt 0:00:54]} 30. Kg2 {[%emt 0:00:59]} a4 {[%emt 0:02:39]} 31. Rxd5 {[%emt 0:02:43]} Bxe3 {[%emt 0:03:03]} 32. Qc4 {[%emt 0:00:39]} Kh8 {[%emt 0:00:12]} 33. Qc6 {[%emt 0:00:24]} Re8 {[%emt 0:04:41]} 34. Rd7 {[%emt 0:01:53]} Qf8 {[%emt 0:00:03]} 35. Qxa4 {[%emt 0:02:00]} Bh6 {[%emt 0:01:40]} 36. Qc4 {[%emt 0:01:18]} Rc8 {[%emt 0:00:32]} 37. Qd3 {[%emt 0:01:08]} Qg8 {[%emt 0:01:31]} 38. a4 {[%emt 0:03:02]} Re8 {[%emt 0:00:39]} 39. a5 {[%emt 0:02:24]} Qa2+ {[%emt 0:00:39]} 40. Kh3 {[%emt 0:00:20]} Qe6+ {[%emt 0:00:14]} 41. g4 {[%emt 0:30:21]} Bf4 {[%emt 0:02:55]} 42. Rd8 {[%emt 0:00:00]} h5 {[%emt 0:02:44]} 43. Rxe8+ {[%emt 0:00:00]} Qxe8 {[%emt 0:00:01]} 44. Qf5 {[%emt 0:00:00]} Qe3 {[%emt 0:13:24]} 45. Qxh5+ {[%emt 0:00:00]} Kg8 {[%emt 0:03:42]} 46. Qd5+ {[%emt 0:00:00]} Kh8 {[%emt 0:00:01]} 47. Qa8+ {[%emt 0:00:00]} 1-0

[Event "AUT-ch Open 2020"]
[Site "Graz"]
[Date "2020.02.19"]
[Round "7.1"]
[White "Mis, Mieszko"]
[Black "Tisaj, Domen"]
[Result "1-0"]
[ECO "A80"]
[WhiteElo "2334"]
[BlackElo "2245"]
[Annotator "NA"]
[PlyCount "53"]
[EventDate "2020.02.14"]
[EventType "swiss"]
[EventCountry "AUT"]
[SourceTitle "playchess.com"]
[Source "ChessBase"]
[SourceQuality "1"]
[TimeControl "40/5400+30:1800+30"]

1. d4 {[%emt 0:00:00]} f5 {[%emt 0:00:00]} 2. Bg5 {[%emt 0:00:00]} g6 {[%emt 0:00:06]} 3. Nc3 {[%emt 0:00:15]} Bg7 {[%emt 0:00:10]} 4. Nf3 {[%emt 0:00:42]} Nf6 {[%emt 0:00:41]} 5. e3 {[%emt 0:01:10]} O-O {[%emt 0:02:52]} 6. Bd3 {[%emt 0:05:56]} d5 {[%emt 0:00:53]} 7. h4 {[%emt 0:04:52]} Ne4 {[%emt 0:05:00]} 8. Ne2 {[%emt 0:08:32]} Nxg5 {[%emt 0:09:23]} 9. hxg5 {[%emt 0:01:45]} Qd6 {[%emt 0:03:02]} 10. Qd2 {[%emt 0:05:19]} Nd7 {[%emt 0:01:01]} 11. O-O-O {[%emt 0:02:35]} e5 {[%emt 0:03:03]} 12. dxe5 {[%emt 0:01:10]} Nxe5 {[%emt 0:00:06]} 13. Nxe5 {[%emt 0:05:59]} Qxe5 {[%emt 0:00:37]} 14. c3 {[%emt 0:00:15]} Qe7 {[%emt 1:10:06]} 15. f4 {[%emt 0:01:57]} Rf7 {[%emt 0:00:00]} 16. Rh2 {[%emt 0:02:01]} Bd7 {[%emt 0:00:00]} 17. Rdh1 {[%emt 0:00:20]} Re8 {[%emt 0:00:00]} 18. Rh3 {[%emt 0:06:12]} Bf8 {[%emt 0:00:00]} 19. Bc2 {[%emt 0:09:49]} c6 {[%emt 0:00:00]} 20. Qd3 {[%emt 0:08:59]} Rg7 {[%emt 0:00:00]} 21. Kb1 {[%emt 0:00:53]} b5 {[%emt 0:00:00]} 22. Nd4 {[%emt 0:03:05]} a6 {[%emt 0:00:00]} 23. g4 {[%emt 0:03:23]} fxg4 {[%emt 0:00:00]} 24. Rxh7 {[%emt 0:00:51]} Rxh7 {[%emt 0:00:00]} 25. Qxg6+ {[%emt 0:00:02]} Rg7 {[%emt 0:00:00]} 26. Qh6 {[%emt 0:00:52]} Qxe3 {[%emt 0:00:00]} 27. Bh7+ {[%emt 0:00:29]} 1-0

[Event "AUT-ch Open 2020"]
[Site "Graz"]
[Date "2020.02.19"]
[Round "7.2"]
[White "Regez, Markus"]
[Black "Sandhoefner, Florian"]
[Result "1/2-1/2"]
[ECO "D01"]
[WhiteElo "2144"]
[BlackElo "2328"]
[Annotator "NA"]
[PlyCount "68"]
[EventDate "2020.02.14"]
[EventType "swiss"]
[EventCountry "AUT"]
[SourceTitle "playchess.com"]
[Source "ChessBase"]
[SourceQuality "1"]
[TimeControl "40/5400+30:1800+30"]

1. d4 {[%emt 0:00:00]} d5 {[%emt 0:00:00]} 2. Nc3 {[%emt 0:00:00]} Nf6 {[%emt 0:00:00]} 3. Bg5 {[%emt 0:00:00]} Nbd7 {[%emt 0:00:00]} 4. e3 {[%emt 0:01:43]} c6 {[%emt 0:00:31]} 5. f4 {[%emt 0:00:17]} e6 {[%emt 0:00:34]} 6. Bd3 {[%emt 0:06:34]} Be7 {[%emt 0:00:28]} 7. Nf3 {[%emt 0:00:20]} c5 {[%emt 0:00:47]} 8. O-O {[%emt 0:01:09]} O-O {[%emt 0:00:39]} 9. Qe1 {[%emt 0:05:01]} h6 {[%emt 0:03:12]} 10. Bxf6 {[%emt 0:05:44]} Nxf6 {[%emt 0:00:45]} 11. Kh1 {[%emt 0:02:00]} Qc7 {[%emt 0:05:04]} 12. Ne5 {[%emt 0:05:27]} a6 {[%emt 0:04:40]} 13. g4 {[%emt 0:05:59]} Nd7 {[%emt 0:01:41]} 14. Qg3 {[%emt 0:11:14]} Nxe5 {[%emt 0:12:52]} 15. fxe5 {[%emt 0:01:37]} Qd8 {[%emt 0:02:35]} 16. Rf3 {[%emt 0:04:02]} b5 {[%emt 1:04:12]} 17. Rg1 {[%emt 0:07:30]} Bh4 {[%emt 0:00:00]} 18. Qh3 {[%emt 0:09:57]} c4 {[%emt 0:00:00]} 19. Bf1 {[%emt 0:02:23]} Bg5 {[%emt 0:00:00]} 20. Ne2 {[%emt 0:01:26]} f6 {[%emt 0:00:00]} 21. Qg3 {[%emt 0:05:42]} fxe5 {[%emt 0:00:00]} 22. Rxf8+ {[%emt 0:00:18]} Qxf8 {[%emt 0:00:00]} 23. h4 {[%emt 0:01:00]} Be7 {[%emt 0:00:00]} 24. dxe5 {[%emt 0:01:08]} Bd7 {[%emt 0:00:00]} 25. Nd4 {[%emt 0:00:09]} Qf7 {[%emt 0:00:00]} 26. Bg2 {[%emt 0:06:10]} Rf8 {[%emt 0:00:00]} 27. Bf3 {[%emt 0:07:22]} g5 {[%emt 0:00:00]} 28. h5 {[%emt 0:01:09]} c3 {[%emt 0:00:00]} 29. b3 {[%emt 0:00:42]} Bc5 {[%emt 0:00:00]} 30. Kg2 {[%emt 0:01:23]} Bxd4 {[%emt 0:00:00]} 31. exd4 {[%emt 0:00:11]} Qh7 {[%emt 0:00:00]} 32. Rc1 {[%emt 0:03:37]} Rf4 {[%emt 0:00:00]} 33. Qf2 {[%emt 0:00:08]} b4 {[%emt 0:00:00]} 34. a4 {[%emt 0:01:24]} Bc8 {[%emt 0:00:00]} 1/2-1/2

[Event "AUT-ch Open 2020"]
[Site "Graz"]
[Date "2020.02.19"]
[Round "7.3"]
[White "Niedbala, Bartlomiej"]
[Black "Bodrogi, Bendeguz"]
[Result "0-1"]
[ECO "A45"]
[WhiteElo "2432"]
[BlackElo "2032"]
[Annotator "NA"]
[PlyCount "74"]
[EventDate "2020.02.14"]
[EventType "swiss"]
[EventCountry "AUT"]
[SourceTitle "playchess.com"]
[Source "ChessBase"]
[SourceQuality "1"]
[TimeControl "40/5400+30:1800+30"]

1. d4 {[%emt 0:05:30]} Nf6 {[%emt 0:00:03]} 2. Bg5 {[%emt 0:00:05]} c5 {[%emt 0:03:15]} 3. Bxf6 {[%emt 0:02:45]} gxf6 {[%emt 0:00:14]} 4. d5 {[%emt 0:00:09]} d6 {[%emt 0:01:29]} 5. e3 {[%emt 0:05:37]} Nd7 {[%emt 0:02:41]} 6. c4 {[%emt 0:08:58]} f5 {[%emt 0:00:25]} 7. Nc3 {[%emt 0:00:04]} Bg7 {[%emt 0:00:49]} 8. Bd3 {[%emt 0:01:02]} Ne5 {[%emt 0:03:15]} 9. Nge2 {[%emt 0:01:23]} Bd7 {[%emt 0:04:50]} 10. Ng3 {[%emt 0:05:35]} Qa5 {[%emt 0:08:07]} 11. O-O {[%emt 0:01:26]} Qb4 {[%emt 0:10:33]} 12. a3 {[%emt 0:25:21]} Qxb2 {[%emt 0:09:02]} 13. Nge2 {[%emt 0:18:59]} Qb6 {[%emt 0:02:14]} 14. Rb1 {[%emt 0:00:29]} Qc7 {[%emt 0:00:11]} 15. Ng3 {[%emt 0:03:39]} Nxc4 {[%emt 0:09:50]} 16. Bxc4 {[%emt 0:00:21]} Bxc3 {[%emt 0:00:02]} 17. Qd3 {[%emt 0:01:35]} Bf6 {[%emt 0:01:07]} 18. Nxf5 {[%emt 0:01:24]} a6 {[%emt 0:03:26]} 19. a4 {[%emt 0:03:01]} Bxa4 {[%emt 0:03:40]} 20. Qe4 {[%emt 0:00:05]} Bd7 {[%emt 0:02:54]} 21. Be2 {[%emt 0:00:48]} b5 {[%emt 0:02:08]} 22. Nh6 {[%emt 0:00:30]} Bg7 {[%emt 0:04:41]} 23. Nf5 {[%emt 0:00:42]} Bxf5 {[%emt 0:01:39]} 24. Qxf5 {[%emt 0:00:01]} Qd7 {[%emt 0:00:01]} 25. Qh5 {[%emt 0:00:37]} Bf6 {[%emt 0:05:08]} 26. Bg4 {[%emt 0:02:37]} Qc7 {[%emt 0:00:53]} 27. Rfc1 {[%emt 0:01:50]} Rb8 {[%emt 0:00:33]} 28. Be6 {[%emt 0:03:02]} Rf8 {[%emt 0:00:05]} 29. Rb4 {[%emt 0:00:10]} Qa5 {[%emt 0:02:53]} 30. Rg4 {[%emt 0:03:12]} Qd2 {[%emt 0:00:14]} 31. Rf1 {[%emt 0:00:16]} Kd8 {[%emt 0:01:59]} 32. Bxf7 {[%emt 0:00:18]} c4 {[%emt 0:04:54]} 33. Qxh7 {[%emt 0:01:06]} c3 {[%emt 0:00:15]} 34. Bg6 {[%emt 0:02:47]} Rh8 {[%emt 0:00:49]} 35. Qf7 {[%emt 0:00:12]} c2 {[%emt 0:00:14]} 36. Bxc2 {[%emt 0:00:47]} Qxc2 {[%emt 0:00:21]} 37. Rf4 {[%emt 0:00:37]} Qh7 {[%emt 0:01:00]} 0-1

[Event "AUT-ch Open 2020"]
[Site "Graz"]
[Date "2020.02.19"]
[Round "7.4"]
[White "Ohanyan, Emin"]
[Black "Valeanu, Eduard-Andrei"]
[Result "1-0"]
[ECO "B35"]
[WhiteElo "2209"]
[BlackElo "2427"]
[Annotator "NA"]
[PlyCount "91"]
[EventDate "2020.02.14"]
[EventType "swiss"]
[EventCountry "AUT"]
[SourceTitle "playchess.com"]
[Source "ChessBase"]
[SourceQuality "1"]
[TimeControl "40/5400+30:1800+30"]

1. e4 {[%emt 0:00:00]} c5 {[%emt 0:01:32]} 2. Nf3 {[%emt 0:00:00]} g6 {[%emt 0:00:05]} 3. d4 {[%emt 0:00:00]} Bg7 {[%emt 0:00:04]} 4. Nc3 {[%emt 0:00:00]} cxd4 {[%emt 0:00:04]} 5. Nxd4 {[%emt 0:00:00]} Nc6 {[%emt 0:00:05]} 6. Be3 {[%emt 0:00:03]} Nf6 {[%emt 0:00:05]} 7. Bc4 {[%emt 0:00:04]} Qa5 {[%emt 0:00:12]} 8. O-O {[%emt 0:01:07]} O-O {[%emt 0:00:04]} 9. Bb3 {[%emt 0:01:38]} d6 {[%emt 0:00:10]} 10. h3 {[%emt 0:02:30]} Bd7 {[%emt 0:00:39]} 11. Nd5 {[%emt 0:21:28]} Nxe4 {[%emt 0:18:55]} 12. Nxc6 {[%emt 0:16:52]} bxc6 {[%emt 0:00:21]} 13. Nxe7+ {[%emt 0:00:30]} Kh8 {[%emt 0:00:01]} 14. f3 {[%emt 0:06:44]} Qe5 {[%emt 0:03:21]} 15. fxe4 {[%emt 0:06:18]} Qxe7 {[%emt 0:01:03]} 16. Bd4 {[%emt 0:04:08]} Rae8 {[%emt 0:03:38]} 17. Bxg7+ {[%emt 0:01:14]} Kxg7 {[%emt 0:00:02]} 18. Qd4+ {[%emt 0:00:16]} Qe5 {[%emt 0:00:44]} 19. Rad1 {[%emt 0:01:48]} Re7 {[%emt 0:06:55]} 20. Qxd6 {[%emt 0:03:07]} Bc8 {[%emt 0:02:35]} 21. Rf2 {[%emt 0:19:25]} Qxe4 {[%emt 0:00:44]} 22. Qf6+ {[%emt 0:00:36]} Kh6 {[%emt 0:02:19]} 23. Rf4 {[%emt 0:01:50]} Qe3+ {[%emt 0:00:04]} 24. Kh1 {[%emt 0:00:13]} Re5 {[%emt 0:00:10]} 25. Rh4+ {[%emt 0:06:15]} Rh5 {[%emt 0:00:01]} 26. Rxh5+ {[%emt 0:00:19]} Kxh5 {[%emt 0:00:01]} 27. Qg7 {[%emt 0:02:06]} Qh6 {[%emt 0:02:20]} 28. g4+ {[%emt 0:02:08]} Kg5 {[%emt 0:00:01]} 29. Qe5+ {[%emt 0:00:54]} f5 {[%emt 0:02:45]} 30. Kg2 {[%emt 0:00:23]} Qh4 {[%emt 0:00:34]} 31. Qe7+ {[%emt 0:01:07]} Rf6 {[%emt 0:00:01]} 32. Rd6 {[%emt 0:00:34]} Kf4 {[%emt 0:00:00]} 33. Rd4+ {[%emt 0:00:11]} Kg5 {[%emt 0:00:13]} 34. Rd6 {[%emt 0:00:02]} Kf4 {[%emt 0:00:01]} 35. Rd4+ {[%emt 0:01:49]} Kg5 {[%emt 0:00:01]} 36. Qe3+ {[%emt 0:01:14]} f4 {[%emt 0:00:04]} 37. Qe5+ {[%emt 0:00:05]} Kh6 {[%emt 0:01:18]} 38. Rxf4 {[%emt 0:00:38]} Bf5 {[%emt 0:01:05]} 39. gxf5 {[%emt 0:00:34]} Qg5+ {[%emt 0:00:01]} 40. Kf2 {[%emt 0:01:08]} gxf5 {[%emt 0:00:04]} 41. h4 {[%emt 0:30:11]} Qg6 {[%emt 0:30:26]} 42. Qe3 {[%emt 0:00:00]} Kg7 {[%emt 0:00:00]} 43. Qxa7+ {[%emt 0:00:00]} Kh6 {[%emt 0:00:00]} 44. Qe7 {[%emt 0:00:00]} Rd6 {[%emt 0:00:00]} 45. Qf8+ {[%emt 0:00:00]} Kh5 {[%emt 0:00:00]} 46. Qxf5+ {[%emt 0:00:00]} 1-0

[Event "AUT-ch Open 2020"]
[Site "Graz"]
[Date "2020.02.19"]
[Round "7.5"]
[White "Bauer, Thomas"]
[Black "Handler, Lukas"]
[Result "0-1"]
[ECO "C07"]
[WhiteElo "2201"]
[BlackElo "2422"]
[Annotator "NA"]
[PlyCount "84"]
[EventDate "2020.02.14"]
[EventType "swiss"]
[EventCountry "AUT"]
[SourceTitle "playchess.com"]
[Source "ChessBase"]
[SourceQuality "1"]
[TimeControl "40/5400+30:1800+30"]

1. e4 {[%emt 0:00:00]} e6 {[%emt 0:00:00]} 2. d4 {[%emt 0:00:00]} d5 {[%emt 0:00:00]} 3. Nd2 {[%emt 0:00:00]} c5 {[%emt 0:00:00]} 4. exd5 {[%emt 0:00:00]} Qxd5 {[%emt 0:00:09]} 5. Ngf3 {[%emt 0:00:00]} cxd4 {[%emt 0:00:07]} 6. Bc4 {[%emt 0:00:00]} Qd6 {[%emt 0:03:02]} 7. O-O {[%emt 0:00:56]} Nf6 {[%emt 0:00:12]} 8. Nb3 {[%emt 0:00:09]} Nc6 {[%emt 0:01:37]} 9. Nbxd4 {[%emt 0:00:06]} Nxd4 {[%emt 0:00:06]} 10. Nxd4 {[%emt 0:00:09]} a6 {[%emt 0:00:12]} 11. Re1 {[%emt 0:00:06]} Qc7 {[%emt 0:01:24]} 12. Bf1 {[%emt 0:00:02]} Bd7 {[%emt 0:04:44]} 13. g3 {[%emt 0:07:25]} O-O-O {[%emt 0:02:04]} 14. Qf3 {[%emt 0:01:50]} e5 {[%emt 0:06:38]} 15. Nb3 {[%emt 0:03:07]} Bd6 {[%emt 0:09:38]} 16. Bd2 {[%emt 0:09:09]} Bc6 {[%emt 0:07:31]} 17. Qe2 {[%emt 0:09:18]} Kb8 {[%emt 0:13:50]} 18. c4 {[%emt 0:00:02]} Ne4 {[%emt 0:07:58]} 19. Na5 {[%emt 0:18:54]} Nxd2 {[%emt 0:09:35]} 20. Nxc6+ {[%emt 0:00:01]} Qxc6 {[%emt 0:00:11]} 21. Qxd2 {[%emt 0:00:06]} Bc5 {[%emt 0:02:24]} 22. Qc2 {[%emt 0:08:55]} Bd4 {[%emt 0:04:11]} 23. Bg2 {[%emt 0:05:13]} Qc7 {[%emt 0:05:32]} 24. Re2 {[%emt 0:02:39]} h5 {[%emt 0:01:06]} 25. a4 {[%emt 0:03:56]} h4 {[%emt 0:02:18]} 26. Ra3 {[%emt 0:00:45]} hxg3 {[%emt 0:01:36]} 27. hxg3 {[%emt 0:00:01]} a5 {[%emt 0:08:29]} 28. Rb3 {[%emt 0:03:26]} b6 {[%emt 0:00:07]} 29. Qe4 {[%emt 0:03:45]} Ka7 {[%emt 0:00:26]} 30. Rf3 {[%emt 0:06:16]} Rd7 {[%emt 0:02:47]} 31. b3 {[%emt 0:08:38]} f6 {[%emt 0:00:41]} 32. Rd2 {[%emt 0:01:15]} Rhd8 {[%emt 0:02:41]} 33. Rfd3 {[%emt 0:01:22]} Qd6 {[%emt 0:00:39]} 34. Bf3 {[%emt 0:01:44]} Qe7 {[%emt 0:01:53]} 35. Kg2 {[%emt 0:00:26]} Qf7 {[%emt 0:01:00]} 36. Bg4 {[%emt 0:05:25]} Rd6 {[%emt 0:00:13]} 37. Qh7 {[%emt 0:00:55]} f5 {[%emt 0:01:12]} 38. Qxf5 {[%emt 0:02:25]} Rf6 {[%emt 0:00:05]} 39. Qh7 {[%emt 0:00:32]} Rxf2+ {[%emt 0:00:08]} 40. Kh3 {[%emt 0:00:30]} Rf6 {[%emt 0:02:13]} 41. Bh5 {[%emt 0:05:28]} Rh6 {[%emt 0:06:13]} 42. Qxh6 {[%emt 0:04:05]} Qf1+ {[%emt 0:00:08]} 0-1

[Event "AUT-ch Open 2020"]
[Site "Graz"]
[Date "2020.02.19"]
[Round "7.6"]
[White "Baum, Jonasz"]
[Black "Burmakin, Vladimir"]
[Result "1/2-1/2"]
[ECO "D70"]
[WhiteElo "2514"]
[BlackElo "2514"]
[Annotator "ChessBase"]
[PlyCount "67"]
[EventDate "2020.02.14"]
[EventType "swiss"]
[EventCountry "AUT"]
[SourceTitle "playchess.com"]
[Source "ChessBase"]
[SourceQuality "1"]
[TimeControl "40/5400+30:1800+30"]

1. d4 {[%emt 0:00:00]} Nf6 {[%emt 0:00:00]} 2. c4 {[%emt 0:00:00]} c6 {[%emt 0:00:00]} 3. Nf3 {[%emt 0:00:03]} d5 {[%emt 0:00:00]} 4. Nbd2 {[%emt 0:00:22]} Bf5 {[%emt 0:03:06]} 5. Nh4 {[%emt 0:00:41]} Be6 {[%emt 0:01:27]} 6. e3 {[%emt 0:02:34]} g6 {[%emt 0:00:07]} 7. Bd3 {[%emt 0:01:38]} Bg7 {[%emt 0:00:17]} 8. O-O {[%emt 0:00:32]} O-O {[%emt 0:01:38]} 9. b3 {[%emt 0:06:15]} c5 {[%emt 0:00:42]} 10. Nhf3 {[%emt 0:03:40]} cxd4 {[%emt 0:01:37]} 11. exd4 {[%emt 0:01:37]} Nc6 {[%emt 0:00:11]} 12. Bb2 {[%emt 0:00:39]} dxc4 {[%emt 0:05:50]} 13. bxc4 {[%emt 0:03:11]} Nh5 {[%emt 0:00:27]} 14. Nb3 {[%emt 0:02:35]} Nf4 {[%emt 0:00:33]} 15. Rc1 {[%emt 0:05:20]} Nxd3 {[%emt 0:19:34]} 16. Qxd3 {[%emt 0:00:02]} Nb4 {[%emt 0:01:18]} 17. Qe2 {[%emt 0:22:05]} Nxa2 {[%emt 0:00:14]} 18. Ra1 {[%emt 0:05:25]} Nb4 {[%emt 0:03:06]} 19. d5 {[%emt 0:00:59]} Bxb2 {[%emt 0:00:32]} 20. Qxb2 {[%emt 0:00:02]} Bc8 {[%emt 0:01:56]} 21. Qd2 {[%emt 0:17:17]} Na6 {[%emt 0:01:39]} 22. Rfe1 {[%emt 0:06:20]} Nc7 {[%emt 0:19:17]} 23. Nbd4 {[%emt 0:03:23]} Ne8 {[%emt 0:13:39]} 24. Qh6 {[%emt 0:02:52]} f6 {[%emt 0:00:30]} 25. Qe3 {[%emt 0:02:04]} Rf7 {[%emt 0:06:17]} 26. Qb3 {[%emt 0:02:37]} Bg4 {[%emt 0:05:46]} 27. Ne6 {[%emt 0:05:07]} Qc8 {[%emt 0:00:03]} 28. Nfd4 {[%emt 0:01:33]} Bxe6 {[%emt 0:00:08]} 29. dxe6 {[%emt 0:01:09]} Rf8 {[%emt 0:00:07]} 30. Qb4 {[%emt 0:00:50]} Ng7 {[%emt 0:03:37]} 31. Qxe7 {[%emt 0:00:46]} Qxc4 {[%emt 0:00:03]} 32. Nf3 {[%emt 0:02:03]} Rae8 {[%emt 0:01:11]} 33. Qxb7 {[%emt 0:00:42]} Rxe6 {[%emt 0:00:23]} 34. Rxe6 {[%emt 0:00:35]} 1/2-1/2

[Event "AUT-ch Open 2020"]
[Site "Graz"]
[Date "2020.02.19"]
[Round "7.6"]
[White "Nomin-Erdene, Davaademberel"]
[Black "Advait, Bagri"]
[Result "1/2-1/2"]
[ECO "C86"]
[WhiteElo "2417"]
[BlackElo "2185"]
[Annotator "NA"]
[PlyCount "79"]
[EventDate "2020.02.14"]
[EventType "swiss"]
[EventCountry "AUT"]
[SourceTitle "playchess.com"]
[Source "ChessBase"]
[SourceQuality "1"]
[TimeControl "40/5400+30:1800+30"]

1. e4 {[%emt 0:00:00]} e5 {[%emt 0:00:00]} 2. Nf3 {[%emt 0:00:00]} Nc6 {[%emt 0:00:00]} 3. Bb5 {[%emt 0:00:00]} a6 {[%emt 0:00:06]} 4. Ba4 {[%emt 0:00:00]} Nf6 {[%emt 0:00:08]} 5. O-O {[%emt 0:00:00]} Be7 {[%emt 0:00:08]} 6. Qe2 {[%emt 0:00:06]} b5 {[%emt 0:03:00]} 7. Bb3 {[%emt 0:00:05]} d6 {[%emt 0:01:22]} 8. c3 {[%emt 0:00:12]} Bg4 {[%emt 0:05:13]} 9. Rd1 {[%emt 0:14:21]} Na5 {[%emt 0:07:13]} 10. Bc2 {[%emt 0:00:18]} c5 {[%emt 0:00:10]} 11. h3 {[%emt 0:01:26]} Bd7 {[%emt 0:08:58]} 12. d4 {[%emt 0:00:54]} Qc7 {[%emt 0:00:21]} 13. d5 {[%emt 0:00:21]} O-O {[%emt 0:00:23]} 14. Nbd2 {[%emt 0:07:15]} c4 {[%emt 0:02:26]} 15. Nf1 {[%emt 0:00:30]} Nb7 {[%emt 0:00:43]} 16. N3h2 {[%emt 0:12:59]} g6 {[%emt 0:09:54]} 17. g4 {[%emt 0:08:35]} h5 {[%emt 0:09:52]} 18. f4 {[%emt 0:22:49]} hxg4 {[%emt 0:05:09]} 19. hxg4 {[%emt 0:00:22]} exf4 {[%emt 0:01:23]} 20. Bxf4 {[%emt 0:00:05]} Nh7 {[%emt 0:00:10]} 21. Ne3 {[%emt 0:03:19]} Bg5 {[%emt 0:06:48]} 22. Qf3 {[%emt 0:06:51]} Rae8 {[%emt 0:03:39]} 23. Kh1 {[%emt 0:00:08]} Qd8 {[%emt 0:03:21]} 24. Rg1 {[%emt 0:01:32]} Qe7 {[%emt 0:06:11]} 25. Nef1 {[%emt 0:05:23]} Bxf4 {[%emt 0:02:50]} 26. Qxf4 {[%emt 0:00:05]} Ng5 {[%emt 0:00:09]} 27. Ng3 {[%emt 0:00:17]} Nc5 {[%emt 0:05:00]} 28. Rge1 {[%emt 0:11:39]} Qe5 {[%emt 0:00:44]} 29. Qxe5 {[%emt 0:00:47]} Rxe5 {[%emt 0:00:18]} 30. Rad1 {[%emt 0:00:03]} Rfe8 {[%emt 0:00:52]} 31. Rd4 {[%emt 0:00:18]} Kg7 {[%emt 0:00:43]} 32. Kg2 {[%emt 0:01:52]} Rh8 {[%emt 0:00:32]} 33. Rf1 {[%emt 0:01:17]} Rh4 {[%emt 0:02:07]} 34. Rf4 {[%emt 0:00:45]} Nh3 {[%emt 0:01:11]} 35. Rf3 {[%emt 0:01:37]} Ng5 {[%emt 0:00:56]} 36. Rf4 {[%emt 0:00:04]} Nh3 {[%emt 0:00:56]} 37. Rf1 {[%emt 0:01:01]} Ng5 {[%emt 0:00:09]} 38. Rf4 {[%emt 0:00:37]} Nh3 {[%emt 0:00:25]} 39. Rf1 {[%emt 0:00:18]} Ng5 {[%emt 0:00:06]} 40. Rf4 {[%emt 0:00:58]} 1/2-1/2